fUST/lending_fUST_20251002
["ID","MTS","AMOUNT","RATE_DAILY","PERIOD"]
[388804590,1759372459773,527.88,0.00033396,60]
[388804591,1759372459805,940.8,0.00033396,60]
[388804592,1759372460001,940.8,0.00033396,60]
[388804593,1759372460261,940.8,0.00033396,60]
[388804594,1759372460544,940.8,0.00033396,60]
[388804595,1759372460810,940.8,0.00033396,60]
[388804596,1759372461051,940.8,0.00033396,60]
[388804597,1759372461446,940.8,0.00033396,60]
[388804598,1759372461677,940.8,0.00033396,60]
[388804599,1759372461789,500.0,0.00033396,60]
[388804600,1759372461934,940.8,0.00033396,60]
[388804601,1759372462040,500.0,0.00033396,60]
[388804602,1759372462278,500.0,0.00033396,60]
[388804603,1759372462308,505.44913598,0.00033396,60]
[388804604,1759372462395,940.8,0.00033396,60]
[388804605,1759372462500,500.0,0.00033396,60]
[388804606,1759372462668,940.8,0.00033396,60]
[388804607,1759372462769,500.0,0.00033396,60]
[388804608,1759372462920,940.8,0.00033396,60]
[388804609,1759372463011,500.0,0.00033396,60]
[388804610,1759372463256,940.8,0.00033396,60]
[388804611,1759372463286,500.0,0.00033396,60]
[388804612,1759372463446,940.8,0.00033396,60]
[388804613,1759372463476,500.0,0.00033396,60]
[388804614,1759372463713,500.0,0.00033396,60]
[388804615,1759372463748,940.8,0.00033396,60]
[388804616,1759372463976,940.8,0.00033396,60]
[388804617,1759372464007,302.16020154,0.00033396,60]
[388804618,1759372464221,940.8,0.00033396,60]
[388804619,1759372464373,500.0,0.00033396,60]
[388804620,1759372464449,940.8,0.00033396,60]
[388804621,1759372464616,500.0,0.00033396,60]
[388804622,1759372464696,940.8,0.00033396,60]
[388804623,1759372464888,500.0,0.00033396,60]
[388804624,1759372464918,940.8,0.00033396,60]
[388804625,1759372465117,320.13,0.00033396,60]
[388804626,1759372465181,940.92,0.00033396,60]
[388804627,1759372466021,500.0,0.00033396,60]
[388804628,1759372466180,500.0,0.00033396,60]
[388804629,1759372466275,516.01628278,0.00033396,60]
[388804630,1759372466415,510.45798075,0.00033396,60]
[388804631,1759372467913,597.22730744,0.00033396,60]
[388804632,1759372474605,475.14617203,0.00033396,60]
[388804633,1759372474912,531.26615382,0.00033396,60]
[388804634,1759372476721,509.49472551,0.00033396,60]
[388804635,1759372478635,505.99625087,0.00033396,60]
[388804637,1759372483108,506.29019156,0.00033396,60]
[388804639,1759372486961,500.0,0.00033396,60]
[388804640,1759372487280,500.0,0.00033396,60]
[388804641,1759372487515,500.0,0.00033396,60]
[388804642,1759372487766,500.0,0.00033396,60]
[388804643,1759372488023,500.0,0.00033396,60]
[388804644,1759372488263,500.0,0.00033396,60]
[388804645,1759372488528,500.0,0.00033396,60]
[388804646,1759372488755,500.0,0.00033396,60]
[388804647,1759372489011,500.0,0.00033396,60]
[388804648,1759372489271,500.0,0.00033396,60]
[388804649,1759372489530,500.0,0.00033396,60]
[388804650,1759372489790,500.0,0.00033396,60]
[388804651,1759372490034,500.0,0.00033396,60]
[388804652,1759372490430,500.0,0.00033396,60]
[388804653,1759372490707,594.36718206,0.00033396,60]
[388804654,1759372493228,504.36386792,0.00033396,60]
[388804655,1759372499807,500.0,0.00033396,60]
[388804656,1759372500050,627.80470341,0.00033396,60]
[388804657,1759372503003,502.95455336,0.00033396,60]
[388804658,1759372503451,463.72521948,0.00033396,60]
[388804659,1759372507197,500.0,0.00033396,60]
[388804660,1759372507470,521.94988568,0.00033396,60]
[388804661,1759372517018,503.13194112,0.00033396,60]
[388804662,1759372518892,505.70778407,0.00033396,60]
[388804663,1759372532112,383.72845937,0.00033396,60]
[388804665,1759372540259,500.0,0.00033396,60]
[388804666,1759372540497,472.14665774,0.00033396,60]
[388804667,1759372541067,466.37862172,0.00033396,60]
[388804671,1759372544012,466.79970984,0.00033396,60]
[388804672,1759372554272,275.49256609,0.00033396,60]
[388804673,1759372555959,213.06645866,0.00033396,60]
[388804674,1759372556003,558.70488678,0.00033396,60]
[388804675,1759372565802,500.0,0.00033396,60]
[388804676,1759372566141,511.23414312,0.00033396,60]
[388804677,1759372577220,500.0,0.00033396,60]
[388804678,1759372577389,500.0,0.00033396,60]
[388804679,1759372577628,500.0,0.00033396,60]
[388804680,1759372577887,500.0,0.00033396,60]
[388804681,1759372578144,500.0,0.00033396,60]
[388804682,1759372578412,500.0,0.00033396,60]
[388804683,1759372579102,500.0,0.00033396,60]
[388804684,1759372579373,500.0,0.00033396,60]
[388804685,1759372579954,500.0,0.00033396,60]
[388804686,1759372580233,500.0,0.00033396,60]
[388804687,1759372580517,249.96,0.00033396,60]
[388804688,1759372587285,462.63677869,0.00033396,60]
[388804689,1759372591060,483.48712968,0.00033396,60]
[388804690,1759372610083,500.0,0.00033396,60]
[388804691,1759372610331,507.95925608,0.00033396,60]
[388804692,1759372611945,500.0,0.00033396,60]
[388804693,1759372612195,455.66423029,0.00033396,60]
[388804695,1759372612972,500.0,0.00033396,60]
[388804696,1759372613211,520.38463771,0.00033396,60]
[388804697,1759372625738,618.36150623,0.00033396,60]
[388804698,1759372631566,500.0,0.00033396,60]
[388804699,1759372631804,510.59928737,0.00033396,60]
[388804700,1759372631927,500.0,0.00033396,60]
[388804701,1759372632152,507.4087759,0.00033396,60]
[388804702,1759372641515,525.91184114,0.00033396,60]
[388804703,1759372645986,500.0,0.00033396,60]
[388804704,1759372646239,500.0,0.00033396,60]
[388804705,1759372646488,500.0,0.00033396,60]
[388804706,1759372646733,522.58634876,0.00033396,60]
[388804707,1759372653745,500.0,0.00033396,60]
[388804708,1759372653973,515.25977534,0.00033396,60]
[388804709,1759372659634,500.0,0.00033396,60]
[388804710,1759372659862,500.0,0.00033396,60]
[388804711,1759372660133,500.0,0.00033396,60]
[388804712,1759372660254,500.0,0.00033396,60]
[388804713,1759372660357,557.22401452,0.00033452,60]
[388804714,1759372660486,378.43269242,0.00033452,60]
[388804715,1759372661446,500.0,0.00033452,60]
[388804716,1759372661728,512.72105489,0.00033452,60]
[388804717,1759372663035,574.92634084,0.00033452,60]
[388804718,1759372664460,500.0,0.00033452,60]
[388804719,1759372664682,596.63423945,0.00033452,60]
[388804720,1759372664934,500.0,0.00033452,60]
[388804721,1759372665208,500.0,0.00033452,60]
[388804722,1759372671120,500.0,0.00033452,60]
[388804723,1759372671156,500.0,0.00033452,60]
[388804724,1759372671447,500.0,0.00033452,60]
[388804725,1759372671478,508.13555725,0.00033452,60]
[388804726,1759372671606,505.32668883,0.00033452,60]
[388804727,1759372673068,267.46448139,0.00033452,60]
[388804728,1759372678718,500.0,0.00033452,60]
[388804729,1759372678966,500.0,0.00033452,60]
[388804730,1759372679221,526.52435983,0.00033452,60]
[388804731,1759372683251,450.61258734,0.00033452,60]
[388804732,1759372685657,500.0,0.00033452,60]
[388804733,1759372685936,506.4999609,0.00033452,60]
[388804734,1759372694242,154.30195671,0.00033452,60]
[388804735,1759372697322,504.97854475,0.00033452,60]
[388804737,1759372705566,500.0,0.00033452,60]
[388804738,1759372705807,512.32478172,0.00033452,60]
[388804739,1759372718222,254.90038568,0.00033452,60]
[388804740,1759372718568,510.89863252,0.00033452,60]
[388804741,1759372718601,500.0,0.00033452,60]
[388804742,1759372718841,506.47096422,0.00033452,60]
[388804743,1759372720755,500.0,0.00033452,60]
[388804744,1759372721034,500.0,0.00033452,60]
[388804745,1759372721269,506.84434816,0.00033452,60]
[388804746,1759372723188,451.51465463,0.00033452,60]
[388804747,1759372727128,502.02655963,0.00033452,60]
[388804748,1759372727452,500.0,0.00033452,60]
[388804749,1759372727704,507.55200185,0.00033452,60]
[388804751,1759372730707,504.41191027,0.00033452,60]
[388804752,1759372734367,501.92348489,0.00033452,60]
[388804753,1759372736918,500.0,0.00033452,60]
[388804754,1759372737161,500.0,0.00033452,60]
[388804755,1759372737426,483.64234372,0.00033452,60]
[388804756,1759372738512,571.04283739,0.00033452,60]
[388804757,1759372745021,500.0,0.00033452,60]
[388804758,1759372745350,504.73581138,0.00033452,60]
[388804759,1759372752640,551.1483763,0.00033452,60]
[388804760,1759372753103,503.27291794,0.00033452,60]
[388804761,1759372755342,500.0,0.00033452,60]
[388804762,1759372755596,506.72767675,0.00033452,60]
[388804763,1759372758682,500.0,0.00033452,60]
[388804764,1759372758942,500.0,0.00033452,60]
[388804765,1759372759211,510.21214997,0.00033452,60]
[388804766,1759372762369,500.0,0.00033452,60]
[388804767,1759372762603,500.0,0.00033452,60]
[388804768,1759372762680,500.0,0.00033452,60]
[388804769,1759372762844,521.35857689,0.00033452,60]
[388804770,1759372762926,500.0,0.00033452,60]
[388804771,1759372763220,500.0,0.00033452,60]
[388804772,1759372763606,515.32859303,0.00033452,60]
[388804773,1759372768891,383.89021268,0.00033452,60]
[388804774,1759372772839,500.0,0.00033452,60]
[388804775,1759372773085,514.33103025,0.00033452,60]
[388804776,1759372775029,500.0,0.00033452,60]
[388804777,1759372775193,514.56801356,0.00033452,60]
[388804778,1759372777299,500.0,0.00033452,60]
[388804779,1759372777558,514.94405428,0.00033452,60]
[388804780,1759372790863,391.3788911,0.00033452,60]
[388804781,1759372791754,500.0,0.00033452,60]
[388804782,1759372792002,513.44540157,0.00033452,60]
[388804783,1759372795068,500.0,0.00033452,60]
[388804784,1759372795338,282.65529793,0.00033452,60]
[388804785,1759372800607,500.0,0.00033452,60]
[388804786,1759372800687,500.0,0.00033452,60]
[388804787,1759372800864,515.58745757,0.00033452,60]
[388804788,1759372800930,500.0,0.00033452,60]
[388804789,1759372801200,510.83364536,0.00033452,60]
[388804790,1759372816913,500.0,0.00033452,60]
[388804791,1759372817195,509.63302267,0.00033452,60]
[388804792,1759372837603,500.0,0.00033452,60]
[388804793,1759372837883,508.80652486,0.00033452,60]
[388804794,1759372901793,175.7402045,0.00033452,60]
[388804795,1759372913580,500.0,0.00033452,60]
[388804796,1759372913812,303.36564646,0.00033452,60]
[388804797,1759372916343,503.81299997,0.00033452,60]
[388804798,1759372941853,304783.4215753,0.00033452,60]
[388804799,1759372961090,500.0,0.00033452,60]
[388804800,1759372961367,460.0,0.00033452,60]
[388804801,1759372972807,478.69859188,0.00033452,60]
[388804802,1759372986940,500.0,0.00033452,60]
[388804803,1759372987176,500.0,0.00033452,60]
[388804804,1759372987442,510.32149793,0.00033452,60]
[388804805,1759372996352,430.98,0.00033452,60]
[388804810,1759373114978,591.35523913,0.00033452,60]
[388804811,1759373116179,460.77095465,0.00033452,60]
[388804814,1759373365942,500.0,0.00033452,60]
[388804815,1759373366168,504.48781359,0.00033452,60]
[388804856,1759373432476,-265.03,0.00019971,2]
[388804857,1759373432485,-150.73167101,0.00019971,2]
[388804858,1759373432496,-310.12543805,0.00019971,2]
[388804900,1759373441162,-368.38312341,0.00019971,2]
[388804916,1759373443655,-337.45567338,0.00019971,2]
[388804917,1759373443665,-265.03,0.00020071,2]
[388804918,1759373443674,-300.0,0.00020869,2]
[388804919,1759373443684,-769.0,0.00020869,2]
[388804920,1759373443693,-3538.7459611,0.0002087,2]
[388804939,1759373577982,500.0,0.00033448,60]
[388804940,1759373578227,213.28020835,0.00033448,60]
[388804942,1759373704091,3000.0,0.00033448,120]
[388804945,1759373891573,319.4,0.00033456,60]
[388804946,1759373898296,2015.9904494,0.00033456,120]
[388804948,1759373986463,500.0,0.00033456,60]
[388804949,1759373986615,500.0,0.00033456,60]
[388804950,1759373986878,500.0,0.00033456,60]
[388804951,1759373987146,500.0,0.00033456,60]
[388804952,1759373987367,647.28092914,0.00033456,60]
[388804954,1759374056809,156.579068,0.00033456,60]
[388804963,1759374443130,-659.89692995,0.00019178,2]
[388804964,1759374443151,-500.61190783,0.00020342,2]
[388804965,1759374457439,635.68494517,0.00033461,60]
[388804966,1759374472097,500.0,0.00033461,60]
[388804967,1759374480472,189.67,0.00015984,7]
[388804969,1759374620463,10314.782,0.00033461,60]
[388804970,1759374625434,500.0,0.00033461,60]
[388804971,1759374625668,500.0,0.00033461,60]
[388804972,1759374625907,500.0,0.00033461,60]
[388804973,1759374626225,643.34,0.00033461,60]
[388805020,1759374632731,-608.69,0.00020914,10]
[388805022,1759374632742,-1089.95,0.00020914,10]
[388805024,1759374632752,-300.0,0.00020922,2]
[388805026,1759374632762,-231.46956265,0.00020923,2]
[388805028,1759374632772,-218.84103948,0.00020923,2]
[388805030,1759374632783,-500.0,0.00020923,2]
[388805033,1759374632794,-401.5283135,0.00020923,2]
[388805035,1759374632809,-259.0676838,0.00020923,2]
[388805037,1759374632822,-500.0,0.00020923,2]
[388805039,1759374632834,-500.0,0.00020923,2]
[388805042,1759374632846,-207.9655441,0.00020923,2]
[388805044,1759374632858,-186.47594538,0.00020923,2]
[388805046,1759374632869,-420.59720001,0.00020923,2]
[388805048,1759374632880,-1065.78290116,0.00020923,2]
[388805050,1759374632890,-632.9001592,0.00020924,2]
[388805052,1759374632905,-14954.3599594,0.00020924,2]
[388805055,1759374632917,-2364.5995429,0.00020924,2]
[388805068,1759374635457,500.0,0.00033461,60]
[388805069,1759374635710,500.0,0.00033461,60]
[388805070,1759374635970,500.0,0.00033461,60]
[388805071,1759374636295,500.0,0.00033461,60]
[388805072,1759374636468,432.2266354,0.00033461,60]
[388805084,1759374638650,-4166.6787998,0.00020924,2]
[388805085,1759374638659,-27201.9431902,0.00020924,2]
[388805150,1759374646286,500.0,0.00033461,60]
[388805153,1759374646562,500.0,0.00033461,60]
[388805155,1759374646744,500.0,0.00033461,60]
[388805156,1759374646852,-590.0,0.00020914,10]
[388805157,1759374646975,500.0,0.00033461,60]
[388805158,1759374647199,500.0,0.00033461,60]
[388805159,1759374647424,500.0,0.00033461,60]
[388805160,1759374647686,500.0,0.00033461,60]
[388805161,1759374647916,500.0,0.00033461,60]
[388805162,1759374648185,500.0,0.00033461,60]
[388805163,1759374648420,500.0,0.00033461,60]
[388805164,1759374648666,519.67,0.00033461,60]
[388805165,1759374689253,500.0,0.00033461,60]
[388805166,1759374689497,500.0,0.00033461,60]
[388805167,1759374689737,500.0,0.00033461,60]
[388805168,1759374776215,500.0,0.00033466,60]
[388805169,1759374776499,500.0,0.00033466,60]
[388805170,1759374776732,500.0,0.00033466,60]
[388805171,1759374805833,500.0,0.00033466,60]
[388805172,1759374806071,500.0,0.00033466,60]
[388805174,1759374858708,500.0,0.00033466,60]
[388805175,1759374858928,571.67,0.00033466,60]
[388805177,1759374943548,500.0,0.00033466,60]
[388805179,1759374956818,631.72,0.00033466,60]
[388805181,1759374973116,500.0,0.00033466,60]
[388805182,1759375016245,1543.15650231,0.00033466,120]
[388805183,1759375073987,500.0,0.0003347,60]
[388805184,1759375074208,500.0,0.0003347,60]
[388805185,1759375074439,500.0,0.0003347,60]
[388805186,1759375074684,398.13,0.0003347,60]
[388805187,1759375123807,500.0,0.0003347,60]
[388805188,1759375124024,571.67,0.0003347,60]
[388805189,1759375140451,391.4,0.00028,120]
[388805190,1759375144196,500.0,0.0003347,60]
[388805191,1759375144474,500.0,0.0003347,60]
[388805192,1759375144747,500.0,0.0003347,60]
[388805193,1759375145016,339.89,0.0003347,60]
[388805194,1759375145136,500.0,0.0003347,60]
[388805195,1759375150078,500.0,0.0003347,60]
[388805196,1759375150508,500.0,0.0003347,60]
[388805197,1759375150745,308.08,0.0003347,60]
[388805198,1759375157788,391.4,0.00028,120]
[388805199,1759375168263,203.72625,0.00028,120]
[388805200,1759375177875,174.58,0.0003347,60]
[388805203,1759375208239,391.4,0.00028,120]
[388805204,1759375214772,203.72625,0.00028,120]
[388805205,1759375223268,391.4,0.00028,120]
[388805207,1759375230341,203.72625,0.00028,120]
[388805208,1759375236221,203.72625,0.00028,120]
[388805214,1759375470587,500.0,0.0003347,60]
[388805215,1759375470825,310.67,0.0003347,60]
[388805223,1759375620540,831.66,0.0003347,60]
[388805224,1759375620814,831.66,0.0003347,60]
[388805225,1759375621059,831.66,0.0003347,60]
[388805226,1759375621296,831.66,0.0003347,60]
[388805228,1759375621554,831.66,0.0003347,60]
[388805229,1759375621811,831.66,0.0003347,60]
[388805230,1759375622049,831.66,0.0003347,60]
[388805231,1759375622289,831.66,0.0003347,60]
[388805232,1759375622529,831.66,0.0003347,60]
[388805233,1759375622751,831.66,0.0003347,60]
[388805234,1759375623010,831.66,0.0003347,60]
[388805235,1759375623255,831.66,0.0003347,60]
[388805236,1759375623493,831.66,0.0003347,60]
[388805237,1759375623736,831.66,0.0003347,60]
[388805238,1759375623998,831.66,0.0003347,60]
[388805239,1759375624228,831.66,0.0003347,60]
[388805240,1759375624472,831.66,0.0003347,60]
[388805241,1759375624814,831.66,0.0003347,60]
[388805242,1759375624993,831.66,0.0003347,60]
[388805243,1759375625251,831.66,0.0003347,60]
[388805244,1759375625485,831.66,0.0003347,60]
[388805245,1759375625780,831.66,0.0003347,60]
[388805246,1759375626072,831.66,0.0003347,60]
[388805247,1759375626661,831.86543084,0.0003347,60]
[388805250,1759375637117,-1165.46529121,0.00020551,2]
[388805253,1759375725805,-12203.10219499,0.00019063,7]
[388805256,1759375787284,500.0,0.0003347,60]
[388805257,1759375787523,500.0,0.0003347,60]
[388805258,1759375787859,500.0,0.0003347,60]
[388805259,1759375788087,643.34,0.0003347,60]
[388805260,1759375797940,500.0,0.0003347,60]
[388805261,1759375798208,500.0,0.0003347,60]
[388805262,1759375804646,500.0,0.0003347,60]
[388805263,1759375805679,500.0,0.0003347,60]
[388805264,1759375807600,500.0,0.0003347,60]
[388805265,1759375808404,500.0,0.0003347,60]
[388805266,1759375808638,182.56,0.0003347,60]
[388805267,1759375808943,500.0,0.0003347,60]
[388805268,1759375809199,500.0,0.0003347,60]
[388805269,1759375809453,500.0,0.0003347,60]
[388805270,1759375809755,500.0,0.0003347,60]
[388805271,1759375810024,500.0,0.0003347,60]
[388805272,1759375810459,500.0,0.0003347,60]
[388805273,1759375810747,500.0,0.0003347,60]
[388805274,1759375810957,500.0,0.0003347,60]
[388805275,1759375811192,500.0,0.0003347,60]
[388805276,1759375811448,500.0,0.0003347,60]
[388805277,1759375811747,519.67,0.0003347,60]
[388805278,1759375814683,500.0,0.0003347,60]
[388805279,1759375818230,202.46251537,0.0003347,120]
[388805280,1759375821021,500.0,0.0003347,60]
[388805281,1759375821101,506.25108011,0.0003347,60]
[388805282,1759375829160,500.0,0.0003347,60]
[388805283,1759375829401,500.0,0.0003347,60]
[388805322,1759375833244,500.0,0.0003347,60]
[388805329,1759375836611,386.7375045,0.0003347,60]
[388805354,1759375837779,-300.0,0.00019062,2]
[388805355,1759375837789,-26127.68920371,0.00019063,7]
[388805356,1759375837799,-293.36416222,0.00019063,7]
[388805357,1759375837808,-213.81218,0.00019063,10]
[388805358,1759375837819,-160.0,0.0002,7]
[388805359,1759375837828,-361.59439686,0.00020433,2]
[388805360,1759375837838,-420.0,0.00020776,2]
[388805362,1759375837847,-293.36416222,0.00020855,2]
[388805363,1759375837856,-234.00747223,0.00020855,2]
[388805364,1759375837865,-160.0,0.00020855,2]
[388805366,1759375837875,-252.89638091,0.000209,2]
[388805367,1759375837884,-151.0,0.00020911,2]
[388805368,1759375837893,-1000.0,0.00020911,2]
[388805369,1759375837903,-155.38885794,0.00020911,2]
[388805370,1759375837912,-1000.0,0.00020911,2]
[388805371,1759375837921,-1000.0,0.00020911,2]
[388805372,1759375837930,-1000.0,0.00020911,2]
[388805373,1759375837939,-1000.0,0.00020911,2]
[388805374,1759375837949,-1000.0,0.00020911,2]
[388805375,1759375837958,-500.0,0.00020911,2]
[388805376,1759375837968,-200.0,0.00020911,2]
[388805377,1759375837978,-1000.0,0.00020911,2]
[388805378,1759375837987,-1000.0,0.00020911,2]
[388805379,1759375837998,-500.0,0.00020911,2]
[388805380,1759375838008,-200.0,0.00020911,2]
[388805381,1759375838017,-1000.0,0.00020911,2]
[388805382,1759375838026,-1000.0,0.00020911,2]
[388805383,1759375838035,-500.0,0.00020911,2]
[388805384,1759375838045,-200.0,0.00020911,2]
[388805385,1759375838054,-1000.0,0.00020911,2]
[388805386,1759375838063,-1000.0,0.00020911,2]
[388805387,1759375838072,-151.0,0.00020911,2]
[388805388,1759375838081,-500.0,0.00020911,2]
[388805389,1759375838090,-200.0,0.00020911,2]
[388805390,1759375838099,-1000.0,0.00020911,2]
[388805391,1759375838108,-1000.0,0.00020911,2]
[388805392,1759375838117,-151.0,0.00020911,2]
[388805393,1759375838126,-200.0,0.00020911,2]
[388805394,1759375838135,-1000.0,0.00020911,2]
[388805395,1759375838144,-1000.0,0.00020911,2]
[388805396,1759375838154,-500.0,0.00020911,2]
[388805397,1759375838164,-151.0,0.00020911,2]
[388805398,1759375838173,-200.0,0.00020911,2]
[388805399,1759375838183,-1000.0,0.00020911,2]
[388805400,1759375838192,-1000.0,0.00020911,2]
[388805401,1759375838201,-500.0,0.00020911,2]
[388805402,1759375838210,-151.0,0.00020911,2]
[388805403,1759375838219,-329.15394509,0.00020911,2]
[388805404,1759375838227,-530.04377118,0.00020911,2]
[388805405,1759375838236,-1000.0,0.00020911,2]
[388805406,1759375838245,-151.0,0.00020911,2]
[388805407,1759375838254,-500.0,0.00020911,2]
[388805408,1759375838263,-725.63688797,0.00020911,2]
[388805409,1759375838271,-151.0,0.00020911,2]
[388805410,1759375838281,-500.0,0.00020911,2]
[388805411,1759375838290,-500.0,0.00020911,2]
[388805412,1759375838299,-151.0,0.00020911,2]
[388805413,1759375838308,-500.0,0.00020911,2]
[388805414,1759375838317,-151.0,0.00020911,2]
[388805415,1759375838327,-500.0,0.00020911,2]
[388805416,1759375838336,-500.0,0.00020911,2]
[388805417,1759375838345,-500.0,0.00020911,2]
[388805418,1759375838354,-500.0,0.00020911,2]
[388805419,1759375838363,-500.0,0.00020911,2]
[388805420,1759375838372,-500.0,0.00020911,2]
[388805421,1759375838382,-500.0,0.00020911,2]
[388805422,1759375838391,-500.0,0.00020911,2]
[388805423,1759375838400,-500.0,0.00020911,2]
[388805424,1759375838409,-500.0,0.00020911,2]
[388805425,1759375838418,-500.0,0.00020911,2]
[388805426,1759375838427,-500.0,0.00020911,2]
[388805427,1759375838436,-504.72334421,0.00020911,2]
[388805428,1759375838445,-250.0,0.00020911,2]
[388805429,1759375838453,-250.0,0.00020911,2]
[388805430,1759375838462,-250.0,0.00020911,2]
[388805431,1759375838471,-250.0,0.00020911,2]
[388805432,1759375838480,-500.0,0.00020912,2]
[388805433,1759375838490,-188.02,0.00020914,3]
[388805434,1759375838499,-431.05,0.00020914,10]
[388805435,1759375838512,-738.12,0.00020914,10]
[388805436,1759375838521,-151.0,0.00020924,2]
[388805437,1759375838530,-177.947643,0.00020924,2]
[388805438,1759375838539,-151.0,0.00020924,2]
[388805439,1759375838550,-151.0,0.00020924,2]
[388805440,1759375838558,-153.681436,0.00020924,2]
[388805441,1759375838569,-151.0,0.00020924,2]
[388805442,1759375838578,-151.0,0.00020924,2]
[388805443,1759375838589,-154.734652,0.00020924,2]
[388805444,1759375838599,-152.075036,0.00020924,2]
[388805445,1759375838608,-151.0,0.00020924,2]
[388805446,1759375838617,-151.0,0.00020924,2]
[388805447,1759375838627,-151.0,0.00020924,2]
[388805448,1759375838644,-153.058172,0.00020924,2]
[388805449,1759375838654,-151.0,0.00020924,2]
[388805450,1759375838663,-207.073478,0.00020924,2]
[388805451,1759375838672,-151.0,0.00020924,2]
[388805452,1759375838682,-151.0,0.00020924,2]
[388805453,1759375838692,-151.0,0.00020924,2]
[388805454,1759375838701,-151.0,0.00020924,2]
[388805455,1759375838710,-151.0,0.00020924,2]
[388805456,1759375838719,-151.0,0.00020924,2]
[388805457,1759375838728,-156.075261,0.00020924,2]
[388805458,1759375838737,-151.0,0.00020924,2]
[388805459,1759375838746,-151.0,0.00020924,2]
[388805460,1759375838755,-151.0,0.00020924,2]
[388805461,1759375838763,-151.0,0.00020924,2]
[388805462,1759375838772,-151.0,0.00020924,2]
[388805463,1759375838781,-151.0,0.00020924,2]
[388805464,1759375838790,-249.4541,0.00020924,2]
[388805465,1759375838799,-151.0,0.00020924,2]
[388805466,1759375838808,-151.0,0.00020924,2]
[388805467,1759375838818,-151.0,0.00020924,2]
[388805468,1759375838827,-151.0,0.00020924,2]
[388805469,1759375838836,-151.0,0.00020924,2]
[388805470,1759375838846,-157.282109,0.00020924,2]
[388805471,1759375838855,-151.0,0.00020924,2]
[388805472,1759375838864,-151.0,0.00020924,2]
[388805473,1759375838874,-153.639637,0.00020924,2]
[388805474,1759375838883,-162.027127,0.00020924,2]
[388805475,1759375838893,-151.0,0.00020924,2]
[388805476,1759375838904,-151.0,0.00020924,2]
[388805477,1759375838915,-151.0,0.00020924,2]
[388805478,1759375838925,-151.0,0.00020924,2]
[388805479,1759375838935,-154.655443,0.00020924,2]
[388805480,1759375838946,-151.0,0.00020924,2]
[388805481,1759375838956,-151.0,0.00020924,2]
[388805482,1759375838965,-151.0,0.00020924,2]
[388805483,1759375838974,-151.0,0.00020924,2]